fUST/lending_fUST_20241127
["ID","MTS","AMOUNT","RATE_DAILY","PERIOD"]
[343467952,1732644633742,-150.14,0.00029772,10]
[343467953,1732644633751,-500.0,0.00029772,10]
[343467954,1732644633764,-500.0,0.00029772,10]
[343467955,1732644633773,-500.0,0.00029772,10]
[343467956,1732644633783,-500.0,0.00029772,10]
[343467957,1732644633795,-150.14,0.00029772,2]
[343467958,1732644633805,-151.0,0.00029776,7]
[343467959,1732644633815,-151.0,0.00029776,7]
[343467960,1732644633826,-151.0,0.00029776,7]
[343467961,1732644633836,-151.0,0.00029776,7]
[343467962,1732644633846,-151.0,0.00029776,7]
[343467963,1732644633856,-151.0,0.00029776,7]
[343467964,1732644633867,-151.0,0.00029776,7]
[343467965,1732644633877,-151.0,0.00029776,7]
[343467966,1732644633887,-1000.0,0.00029776,28]
[343467967,1732644633898,-1000.0,0.00029776,28]
[343467968,1732644633907,-1000.0,0.00029776,28]
[343467969,1732644633917,-1000.0,0.00029776,28]
[343467970,1732644633927,-1000.0,0.00029776,28]
[343467971,1732644633936,-1000.0,0.00029776,28]
[343467972,1732644633946,-1000.0,0.00029776,28]
[343467973,1732644633955,-1000.0,0.00029776,28]
[343467974,1732644633965,-1000.0,0.00029776,28]
[343467975,1732644633975,-1000.0,0.00029776,28]
[343467976,1732644633985,-1000.0,0.00029776,28]
[343467977,1732644633995,-1134.276663,0.00029776,28]
[343467978,1732644634007,-166837.22660713,0.00029776,10]
[343468007,1732644638800,-419.11681631,0.00029399,2]
[343468010,1732644638810,-214.02809956,0.00029399,2]
[343468012,1732644638820,-500.0,0.00029399,2]
[343468014,1732644638831,-500.0,0.00029399,2]
[343468016,1732644638840,-327.96260324,0.00029399,2]
[343468018,1732644638850,-500.0,0.00029399,2]
[343468020,1732644638861,-551.26,0.00029413,10]
[343468022,1732644638871,-150.01,0.00029771,2]
[343468024,1732644638880,-1730.14194544,0.00029771,2]
[343468026,1732644638890,-5319.76053545,0.00029776,10]
[343468034,1732644638958,-55311.41823806,0.00029776,10]
[343468037,1732644638982,-68955.7685887,0.00029776,10]
[343468238,1732644640940,-2312.13563876,0.00029776,10]
[343468247,1732644641009,-71683.41104507,0.00029776,10]
[343468251,1732644641022,-105048.31931043,0.00029776,10]
[343468605,1732644644594,-1082.02096749,0.00029776,10]
[343468614,1732644644673,-125435.76004205,0.00029776,10]
[343468638,1732644646455,-602.03,0.00029766,10]
[343468639,1732644646466,-8996.52999999,0.00029776,10]
[343468640,1732644646479,-18030.15348881,0.00029776,10]
[343468641,1732644646533,-46663.69701594,0.00029776,10]
[343468642,1732644646612,-3308.69999997,0.00029776,10]
[343468644,1732644963681,303.8,0.00029681,120]
[343468645,1732645388695,164.61209,0.00013973,2]
[343468648,1732645633116,-537.67518764,0.00023564,2]
[343468649,1732645633148,-4462.32481236,0.00023564,2]
[343468650,1732645633171,-160.0,0.00024,2]
[343468651,1732645633194,-300.0,0.00024142,2]
[343468652,1732645633216,-194.17919046,0.00024142,2]
[343468653,1732645634126,-105.82080954,0.00024142,2]
[343468654,1732645634149,-151.0,0.00024142,2]
[343468655,1732645634171,-2442.09962174,0.00024143,2]
[343468656,1732645702396,9288.04395409,0.0002,2]
[343468659,1732645724617,16486.04756281,0.0001999,2]
[343468660,1732645724652,50000.0,0.0001999,2]
[343468661,1732645724678,145096.02723147,0.0001999,2]
[343468712,1732645832938,-727.337081,0.000232,2]
[343468713,1732645832948,-208.3685558,0.00023584,2]
[343468714,1732645832958,-172.12142446,0.00023885,2]
[343468715,1732645832970,-555.21565654,0.00023885,2]
[343468716,1732645832982,-113.88434346,0.00023899,2]
[343468717,1732645832995,-165.28558533,0.00023899,2]
[343468718,1732645833004,-298.96941467,0.00023902,2]
[343468719,1732645833015,-355.5,0.00023902,2]
[343468721,1732645833027,-3492.39415486,0.00023902,2]
[343468723,1732645833037,-300.0,0.00023999,2]
[343468725,1732645833047,-300.0,0.00023999,2]
[343468727,1732645833057,-19087.70882903,0.00024,2]
[343468729,1732645833067,-11558.76558516,0.00024143,2]
[343468731,1732645833076,-727.337081,0.0002457,2]
[343468732,1732645833086,-380.0,0.00024658,2]
[343468733,1732645833096,-189.210661,0.00024976,2]
[343468734,1732645833105,-351.06803586,0.0002498,2]
[343468735,1732645833115,-17494.8104825,0.00025,2]
[343468736,1732645833126,-173.45821208,0.00025,2]
[343468737,1732645833137,-351.06803584,0.00025065,2]
[343468738,1732645833147,-379.08,0.0002508,3]
[343468739,1732645833157,-189.54,0.0002508,3]
[343468740,1732645833169,-568.62,0.0002508,3]
[343468741,1732645833179,-320.4,0.0002508,10]
[343468742,1732645833190,-267.0,0.0002508,10]
[343468743,1732645833199,-500.0,0.00025089,2]
[343468744,1732645833209,-500.0,0.00025089,2]
[343468745,1732645833219,-500.0,0.00025089,2]
[343468746,1732645833232,-500.0,0.00025089,2]
[343468747,1732645833244,-589.07397732,0.00025089,2]
[343468748,1732645833254,-500.0,0.00025089,2]
[343468749,1732645833264,-500.0,0.00025089,2]
[343468750,1732645833275,-500.0,0.00025089,2]
[343468751,1732645833285,-500.0,0.00025089,2]
[343468752,1732645833296,-222.14568432,0.00025089,2]
[343468753,1732645833305,-392.87227369,0.00025089,2]
[343468754,1732645833315,-239.93952751,0.00025089,2]
[343468755,1732645833326,-500.0,0.00025089,2]
[343468756,1732645833335,-500.0,0.00025089,2]
[343468757,1732645833345,-500.0,0.00025089,2]
[343468758,1732645833355,-418.45725059,0.00025089,2]
[343468759,1732645833365,-466.78342268,0.00025089,2]
[343468760,1732645833375,-1740.26678681,0.0002509,2]
[343468761,1732645833388,-332.27938125,0.0002509,2]
[343468762,1732645833400,-2490.01080093,0.0002509,2]
[343468796,1732645838966,-1172.51847261,0.0002509,2]
[343468797,1732645838978,-1670.14622631,0.0002509,2]
[343468798,1732645838991,-16509.92800865,0.0002509,2]
[343468802,1732645839128,-612.04779,0.0002509,2]
[343468805,1732645839141,-4658.62470544,0.0002509,2]
[343468807,1732645839152,-15931.87838487,0.0002509,2]
[343468809,1732645839169,-129162.91957964,0.0002509,2]
[343468811,1732645839179,-351.06803584,0.0002515,2]
[343468813,1732645839189,-1000.0,0.0002564,2]
[343468816,1732645839199,-24900.0,0.00025719,2]
[343468818,1732645839209,-2247.04,0.00026,3]
[343468820,1732645839218,-420.0,0.00026026,2]
[343468822,1732645839228,-653.8197107,0.00026384,2]
[343468824,1732645839240,-420.0,0.00026399,2]
[343468826,1732645839250,-758.16,0.0002645,3]
[343468828,1732645839259,-379.08,0.0002645,3]
[343468830,1732645839268,-155.57058402,0.00027297,2]
[343468832,1732645839278,-5000.0,0.00027298,7]
[343468833,1732645839287,-153.285,0.00027298,16]
[343468835,1732645839297,-539.01412804,0.00027373,2]
[343468837,1732645839307,-504.4889735,0.00027373,2]
[343468839,1732645839316,-500.0,0.00027373,2]
[343468841,1732645839325,-505.93708392,0.00027373,2]
[343468843,1732645839335,-500.0,0.00027373,2]
[343468845,1732645839344,-360.16774417,0.00027373,2]
[343468847,1732645839354,-501.06204338,0.00027373,2]
[343468849,1732645839363,-502.47426701,0.00027373,2]
[343468851,1732645839373,-500.0,0.00027373,2]
[343468853,1732645839383,-501.56317806,0.00027373,2]
[343468855,1732645839393,-366.6139554,0.00027373,2]
[343468857,1732645839402,-242.50724405,0.00027396,2]
[343468859,1732645839412,-500.0,0.00027396,2]
[343468861,1732645839421,-285.07319964,0.00027396,2]
[343468863,1732645839431,-245.96692881,0.00027396,2]
[343468865,1732645839441,-309.24873534,0.00027396,2]
[343468867,1732645839450,-327.11635336,0.00027397,3]
[343468869,1732645839460,-500.0,0.00027397,3]
[343468871,1732645839469,-500.0,0.00027397,3]
[343468873,1732645839478,-500.0,0.00027397,3]
[343468875,1732645839489,-500.0,0.00027397,3]
[343468877,1732645839498,-615.68030489,0.00027397,3]
[343468879,1732645839507,-500.0,0.00027397,3]
[343468883,1732645839529,-500.0,0.00027397,3]
[343468885,1732645839539,-500.0,0.00027397,3]
[343468887,1732645839549,-189.14385017,0.00027397,2]
[343468889,1732645839560,-500.0,0.00027397,3]
[343468891,1732645839570,-500.0,0.00027397,3]
[343468893,1732645839580,-491.62,0.00027397,3]
[343468895,1732645839591,-387.50158658,0.00027397,3]
[343468897,1732645839601,-503.45166271,0.00027397,3]
[343468899,1732645839611,-500.0,0.00027397,3]
[343468901,1732645839621,-500.0,0.00027397,3]
[343468903,1732645839631,-500.0,0.00027397,3]
[343468905,1732645839640,-500.0,0.00027397,3]
[343468907,1732645839650,-500.0,0.00027397,3]
[343468909,1732645839660,-500.0,0.00027397,3]
[343468912,1732645839670,-391.76,0.00027397,3]
[343468913,1732645839679,-500.0,0.00027397,3]
[343468915,1732645839689,-500.0,0.00027397,3]
[343468917,1732645839699,-500.0,0.00027397,3]
[343468919,1732645839709,-1000.0,0.00027397,10]
[343468922,1732645839719,-499.66585078,0.00027397,10]
[343469020,1732645840654,-356.27414922,0.00027397,10]
[343469022,1732645840664,-500.0,0.00027397,3]
[343469024,1732645840673,-458.92585079,0.00027397,3]
[343469032,1732645840738,-41.07414921,0.00027397,3]
[343469035,1732645840748,-500.0,0.00027397,3]
[343469038,1732645840758,-569.1,0.00027397,3]
[343469041,1732645840769,-500.0,0.00027397,3]
[343469043,1732645840779,-500.0,0.00027397,3]
[343469045,1732645840789,-608.22,0.00027397,3]
[343469047,1732645840800,-500.0,0.00027397,3]
[343469049,1732645840811,-500.0,0.00027397,3]
[343469051,1732645840820,-500.0,0.00027397,3]
[343469054,1732645840830,-500.0,0.00027397,3]
[343469055,1732645840840,-500.0,0.00027397,3]
[343469057,1732645840851,-500.0,0.00027397,3]
[343469059,1732645840861,-500.0,0.00027397,3]
[343469061,1732645840871,-500.0,0.00027397,3]
[343469064,1732645840881,-540.64,0.00027397,3]
[343469066,1732645840891,-500.0,0.00027397,3]
[343469067,1732645840901,-500.0,0.00027397,3]
[343469069,1732645840911,-500.0,0.00027397,3]
[343469072,1732645840921,-500.0,0.00027397,3]
[343469074,1732645840931,-500.0,0.00027397,3]
[343469076,1732645840940,-500.0,0.00027397,3]
[343469077,1732645840950,-500.0,0.00027397,3]
[343469080,1732645840960,-500.0,0.00027397,3]
[343469082,1732645840970,-500.0,0.00027397,3]
[343469083,1732645840979,-413.22,0.00027397,3]
[343469086,1732645840991,-500.0,0.00027397,3]
[343469088,1732645841001,-500.0,0.00027397,3]
[343469089,1732645841011,-619.02811387,0.00027397,3]
[343469092,1732645841022,-500.0,0.00027397,3]
[343469093,1732645841031,-500.0,0.00027397,3]
[343469095,1732645841041,-500.0,0.00027397,3]
[343469096,1732645841052,-500.0,0.00027397,3]
[343469098,1732645841061,-202.82,0.00027397,3]
[343469100,1732645841071,-500.0,0.00027397,3]
[343469102,1732645841082,-500.0,0.00027397,3]
[343469104,1732645841092,-360.2,0.00027397,3]
[343469106,1732645841102,-500.0,0.00027397,3]
[343469108,1732645841112,-500.0,0.00027397,3]
[343469110,1732645841122,-500.0,0.00027397,3]
[343469112,1732645841132,-500.0,0.00027397,3]
[343469114,1732645841143,-500.0,0.00027397,3]
[343469116,1732645841153,-500.0,0.00027397,3]
[343469118,1732645841167,-500.0,0.00027397,3]
[343469120,1732645841178,-500.0,0.00027397,3]
[343469122,1732645841188,-500.0,0.00027397,3]
[343469124,1732645841199,-500.0,0.00027397,3]
[343469126,1732645841209,-500.0,0.00027397,3]
[343469128,1732645841219,-500.0,0.00027397,3]
[343469130,1732645841228,-501.04,0.00027397,3]
[343469132,1732645841242,-500.0,0.00027397,3]
[343469134,1732645841252,-516.46,0.00027397,3]
[343469136,1732645841262,-241.66569832,0.00027397,3]
[343469138,1732645841272,-587.09053829,0.00027397,3]
[343469140,1732645841285,-500.0,0.00027397,3]
[343469142,1732645841295,-500.0,0.00027397,3]
[343469144,1732645841304,-500.0,0.00027397,3]
[343469146,1732645841315,-500.0,0.00027397,3]
[343469148,1732645841325,-500.0,0.00027397,3]
[343469150,1732645841335,-500.0,0.00027397,3]
[343469152,1732645841345,-404.16,0.00027397,3]
[343469154,1732645841356,-408.09485839,0.00027397,3]
[343469156,1732645841365,-500.0,0.00027397,3]
[343469158,1732645841375,-500.0,0.00027397,3]
[343469160,1732645841385,-500.0,0.00027397,3]
[343469162,1732645841395,-500.0,0.00027397,3]
[343469164,1732645841404,-150.3524153,0.00027397,3]
[343469166,1732645841414,-500.0,0.00027397,3]
[343469168,1732645841424,-500.0,0.00027397,3]
[343469170,1732645841434,-500.0,0.00027397,3]
[343469173,1732645841444,-504.28931252,0.00027397,3]
[343469175,1732645841454,-500.0,0.00027397,3]
[343469177,1732645841464,-500.0,0.00027397,3]
[343469178,1732645841474,-500.0,0.00027397,3]
[343469192,1732645841614,-500.0,0.00027397,3]
[343469194,1732645841632,-496.68,0.00027397,3]
[343469196,1732645841642,-500.0,0.00027397,3]
[343469198,1732645841652,-500.0,0.00027397,3]
[343469200,1732645841661,-500.0,0.00027397,3]
[343469202,1732645841671,-500.0,0.00027397,3]
[343469204,1732645841681,-500.0,0.00027397,3]
[343469206,1732645841692,-500.0,0.00027397,3]
[343469208,1732645841701,-500.0,0.00027397,3]
[343469210,1732645841712,-500.0,0.00027397,3]
[343469212,1732645841721,-500.0,0.00027397,3]
[343469214,1732645841732,-555.96813552,0.00027397,3]
[343469216,1732645841745,-500.0,0.00027397,3]
[343469218,1732645841754,-500.0,0.00027397,3]
[343469220,1732645841763,-500.0,0.00027397,3]
[343469222,1732645841773,-500.0,0.00027397,3]
[343469224,1732645841783,-500.0,0.00027397,3]
[343469226,1732645841792,-240.42,0.00027397,3]
[343469228,1732645841801,-500.0,0.00027397,3]
[343469229,1732645841810,-500.0,0.00027397,3]
[343469230,1732645841820,-500.0,0.00027397,3]
[343469232,1732645841829,-317.12560361,0.00027397,3]
[343469233,1732645841840,-500.0,0.00027397,3]
[343469235,1732645841850,-500.0,0.00027397,3]
[343469236,1732645841860,-500.0,0.00027397,3]
[343469237,1732645841870,-500.0,0.00027397,3]
[343469238,1732645841880,-500.0,0.00027397,3]
[343469239,1732645841891,-500.0,0.00027397,3]
[343469240,1732645841901,-500.0,0.00027397,3]
[343469241,1732645841911,-500.0,0.00027397,3]
[343469242,1732645841920,-212.76,0.00027397,3]
[343469243,1732645841929,-500.0,0.00027397,3]
[343469244,1732645841939,-500.0,0.00027397,3]
[343469245,1732645841949,-500.0,0.00027397,3]
[343469246,1732645841958,-500.0,0.00027397,3]
[343469247,1732645841968,-500.0,0.00027397,3]
[343469248,1732645841978,-500.0,0.00027397,3]
[343469249,1732645841994,-500.0,0.00027397,3]
[343469250,1732645842004,-500.0,0.00027397,3]
[343469251,1732645842014,-500.0,0.00027397,3]
[343469252,1732645842025,-500.0,0.00027397,3]
[343469253,1732645842035,-500.0,0.00027397,3]
[343469254,1732645842045,-500.0,0.00027397,3]
[343469255,1732645842055,-500.0,0.00027397,3]
[343469257,1732645842065,-500.0,0.00027397,3]
[343469259,1732645842075,-500.0,0.00027397,3]
[343469261,1732645842085,-500.0,0.00027397,3]
[343469263,1732645842094,-500.0,0.00027397,3]
[343469265,1732645842103,-500.0,0.00027397,3]
[343469267,1732645842115,-500.0,0.00027397,3]
[343469268,1732645842125,-500.0,0.00027397,3]
[343469269,1732645842134,-500.0,0.00027397,3]
[343469271,1732645842144,-500.0,0.00027397,3]
[343469273,1732645842154,-500.0,0.00027397,3]
[343469274,1732645842168,-500.0,0.00027397,3]
[343469275,1732645842178,-500.0,0.00027397,3]
[343469276,1732645842188,-500.0,0.00027397,3]
[343469277,1732645842199,-191.94,0.00027397,3]
[343469278,1732645842210,-500.0,0.00027397,3]
[343469279,1732645842219,-500.0,0.00027397,3]
[343469280,1732645842229,-482.27913764,0.00027397,3]
[343469281,1732645842243,-500.0,0.00027397,3]
[343469282,1732645842253,-500.0,0.00027397,3]
[343469283,1732645842263,-500.0,0.00027397,3]
[343469284,1732645842272,-578.33,0.00027397,3]
[343469285,1732645842282,-270.71469262,0.00027397,3]
[343469286,1732645842291,-500.0,0.00027397,3]
[343469287,1732645842301,-500.0,0.00027397,3]
[343469289,1732645842311,-500.0,0.00027397,3]
[343469291,1732645842321,-500.0,0.00027397,3]
[343469293,1732645842332,-477.38,0.00027397,3]
[343469295,1732645842342,-504.55716376,0.00027397,3]
[343469296,1732645842351,-511.57798395,0.00027397,3]
[343469297,1732645842360,-500.0,0.00027397,3]
[343469298,1732645842371,-434.96626058,0.00027397,3]
[343469299,1732645842381,-500.0,0.00027397,3]
[343469300,1732645842390,-500.0,0.00027397,3]
[343469301,1732645842400,-500.0,0.00027397,3]
[343469302,1732645842410,-174.82,0.00027397,3]
[343469303,1732645842420,-500.0,0.00027397,3]
[343469304,1732645842429,-500.0,0.00027397,3]
[343469305,1732645842439,-500.0,0.00027397,3]
[343469306,1732645842450,-500.0,0.00027397,3]
[343469307,1732645842460,-500.0,0.00027397,3]
[343469308,1732645842470,-500.0,0.00027397,3]
[343469309,1732645842480,-500.0,0.00027397,3]
[343469310,1732645842492,-500.0,0.00027397,3]
[343469311,1732645842503,-500.0,0.00027397,3]
[343469312,1732645842512,-375.22,0.00027397,3]
[343469313,1732645842522,-500.0,0.00027397,3]
[343469314,1732645842532,-500.0,0.00027397,3]
[343469315,1732645842542,-500.0,0.00027397,3]
[343469316,1732645842552,-500.0,0.00027397,3]
[343469317,1732645842562,-500.0,0.00027397,3]
[343469318,1732645842572,-500.0,0.00027397,3]
[343469319,1732645842581,-500.0,0.00027397,3]
[343469320,1732645842591,-500.0,0.00027397,3]
[343469321,1732645842601,-183.68,0.00027397,3]
[343469322,1732645842610,-500.0,0.00027397,3]
[343469323,1732645842620,-500.0,0.00027397,3]
[343469324,1732645842629,-500.0,0.00027397,3]
[343469325,1732645842639,-546.08,0.00027397,3]
[343469326,1732645842648,-500.0,0.00027397,3]
[343469327,1732645842659,-500.0,0.00027397,3]
[343469328,1732645842668,-500.0,0.00027397,3]
[343469329,1732645842678,-500.0,0.00027397,3]
[343469330,1732645842687,-500.0,0.00027397,3]
[343469331,1732645842697,-500.0,0.00027397,3]
[343469332,1732645842706,-500.0,0.00027397,3]
[343469333,1732645842716,-500.0,0.00027397,3]
[343469334,1732645842727,-500.0,0.00027397,3]
[343469335,1732645842738,-500.0,0.00027397,3]
[343469336,1732645842748,-244.45071078,0.00027397,3]
[343469337,1732645842758,-446.52,0.00027397,3]
[343469338,1732645842767,-500.0,0.00027397,3]
[343469339,1732645842776,-500.0,0.00027397,3]
[343469340,1732645842785,-247.9,0.00027397,3]
[343469341,1732645842795,-500.0,0.00027397,3]
[343469342,1732645842804,-500.0,0.00027397,3]
[343469343,1732645842814,-500.0,0.00027397,3]
[343469344,1732645842823,-500.84011006,0.00027397,3]
[343469345,1732645842833,-500.0,0.00027397,3]
[343469346,1732645842842,-500.0,0.00027397,3]
[343469347,1732645842855,-500.0,0.00027397,3]
[343469348,1732645842864,-500.0,0.00027397,3]
[343469349,1732645842874,-500.0,0.00027397,3]
[343469350,1732645842884,-500.0,0.00027397,3]
[343469351,1732645842894,-208.94101099,0.00027397,3]
[343469352,1732645842903,-500.0,0.00027397,3]
[343469353,1732645842913,-205.06,0.00027397,3]
[343469354,1732645842924,-500.0,0.00027397,2]
[343469355,1732645842934,-500.0,0.00027397,3]
[343469356,1732645842943,-500.0,0.00027397,2]
[343469357,1732645842954,-306.55509186,0.00027397,3]
[343469358,1732645842964,-500.0,0.00027397,3]
[343469359,1732645842973,-500.0,0.00027397,3]
[343469360,1732645842986,-500.0,0.00027397,3]
[343469361,1732645842996,-500.0,0.00027397,3]
[343469362,1732645843005,-500.0,0.00027397,3]
[343469363,1732645843015,-500.0,0.00027397,3]
[343469364,1732645843024,-500.0,0.00027397,3]
[343469365,1732645843034,-500.0,0.00027397,3]
[343469366,1732645843045,-500.0,0.00027397,3]
[343469367,1732645843054,-500.0,0.00027397,3]
[343469368,1732645843064,-500.0,0.00027397,3]
[343469369,1732645843074,-500.0,0.00027397,3]
[343469370,1732645843084,-502.65193505,0.00027397,3]
[343469371,1732645843094,-554.87400879,0.00027397,3]
[343469372,1732645843104,-500.0,0.00027397,3]
[343469373,1732645843114,-500.0,0.00027397,3]
[343469374,1732645843124,-500.0,0.00027397,3]
[343469375,1732645843134,-500.0,0.00027397,3]
[343469376,1732645843146,-500.0,0.00027397,3]
[343469377,1732645843162,-500.0,0.00027397,3]
[343469378,1732645843181,-500.0,0.00027397,3]
[343469379,1732645843194,-349.21250136,0.00027397,3]
[343469380,1732645843212,-500.0,0.00027397,3]
[343469381,1732645843222,-500.0,0.00027397,3]
[343469382,1732645843232,-500.0,0.00027397,3]
[343469383,1732645843244,-500.0,0.00027397,3]
[343469384,1732645843254,-500.0,0.00027397,3]
[343469385,1732645843263,-500.0,0.00027397,3]
[343469386,1732645843274,-500.31302216,0.00027397,3]
[343469387,1732645843284,-500.0,0.00027397,3]
[343469388,1732645843294,-500.0,0.00027397,3]
[343469389,1732645843303,-500.0,0.00027397,3]
[343469390,1732645843312,-500.0,0.00027397,3]
[343469391,1732645843322,-500.0,0.00027397,3]
[343469392,1732645843332,-500.0,0.00027397,3]
[343469393,1732645843341,-500.0,0.00027397,3]
[343469394,1732645843350,-209.8076419,0.00027397,3]
[343469395,1732645843360,-503.06333038,0.00027397,3]
[343469396,1732645843369,-500.0,0.00027397,3]
[343469397,1732645843381,-500.0,0.00027397,3]
[343469398,1732645843400,-500.0,0.00027397,3]
[343469399,1732645843416,-500.0,0.00027397,3]
[343469400,1732645843426,-500.0,0.00027397,3]
[343469401,1732645843435,-500.0,0.00027397,3]
[343469402,1732645843445,-500.0,0.00027397,3]
[343469403,1732645843455,-502.0135951,0.00027397,3]
[343469404,1732645843464,-500.0,0.00027397,3]
[343469405,1732645843474,-500.0,0.00027397,3]
[343469406,1732645843486,-500.0,0.00027397,3]
[343469407,1732645843495,-500.0,0.00027397,3]
[343469408,1732645843505,-500.0,0.00027397,3]
[343469409,1732645843515,-500.0,0.00027397,3]
[343469410,1732645843525,-500.0,0.00027397,3]
[343469411,1732645843534,-500.0,0.00027397,3]
[343469412,1732645843544,-500.0,0.00027397,3]
[343469413,1732645843555,-500.0,0.00027397,3]
[343469414,1732645843564,-500.0,0.00027397,3]
[343469415,1732645843574,-500.0,0.00027397,3]
[343469416,1732645843584,-500.0,0.00027397,3]
[343469417,1732645843593,-500.0,0.00027397,3]
[343469418,1732645843603,-500.0,0.00027397,3]
[343469419,1732645843614,-500.0,0.00027397,3]
[343469420,1732645843624,-500.0,0.00027397,3]
[343469421,1732645843634,-450.84,0.00027397,3]
[343469422,1732645843644,-500.0,0.00027397,3]
[343469423,1732645843654,-500.0,0.00027397,3]
[343469424,1732645843663,-500.0,0.00027397,3]
[343469425,1732645843673,-500.0,0.00027397,3]
[343469426,1732645843683,-504.44821172,0.00027397,3]
[343469427,1732645843694,-500.0,0.00027397,3]
[343469428,1732645843704,-501.59008633,0.00027397,3]
[343469429,1732645843713,-500.0,0.00027397,3]
[343469430,1732645843723,-501.92466093,0.00027397,3]
[343469431,1732645843732,-500.0,0.00027397,3]
[343469432,1732645843743,-505.15871236,0.00027397,3]
[343469433,1732645843753,-500.0,0.00027397,3]
[343469434,1732645843762,-500.0,0.00027397,3]
[343469435,1732645843771,-201.86,0.00027397,3]
[343469436,1732645843781,-500.0,0.00027397,3]
[343469437,1732645843791,-500.0,0.00027397,3]
[343469438,1732645843801,-500.0,0.00027397,3]
[343469439,1732645843812,-500.91480236,0.00027397,3]
[343469440,1732645843821,-500.0,0.00027397,3]
[343469441,1732645843830,-500.0,0.00027397,3]
[343469442,1732645843842,-500.0,0.00027397,3]
[343469443,1732645843853,-500.0,0.00027397,3]
[343469444,1732645843863,-586.05750939,0.00027397,3]
[343469445,1732645843873,-575.25052111,0.00027397,3]
[343469446,1732645843883,-500.0,0.00027397,3]
[343469447,1732645843893,-500.0,0.00027397,3]
[343469448,1732645843903,-502.56046595,0.00027397,3]
[343469449,1732645843913,-150.08720417,0.00027397,3]
[343469450,1732645843923,-500.0,0.00027397,3]
[343469451,1732645843932,-500.0,0.00027397,3]
[343469452,1732645843942,-329.93437976,0.00027397,3]
[343469453,1732645843952,-500.0,0.00027397,3]
[343469454,1732645843961,-500.0,0.00027397,3]
[343469455,1732645843971,-340.74,0.00027397,3]
[343469456,1732645843981,-500.0,0.00027397,3]
[343469457,1732645843999,-500.0,0.00027397,3]
[343469458,1732645844009,-500.0,0.00027397,3]
[343469459,1732645844019,-500.85922844,0.00027397,3]
[343469460,1732645844028,-500.0,0.00027397,3]
[343469461,1732645844039,-500.0,0.00027397,3]
[343469462,1732645844049,-313.3,0.00027397,3]
[343469463,1732645844059,-544.77985384,0.00027397,3]
[343469464,1732645844070,-500.0,0.00027397,3]
[343469465,1732645844080,-611.80221123,0.00027397,3]
[343469466,1732645844090,-500.0,0.00027397,3]
[343469467,1732645844099,-500.0,0.00027397,3]
[343469468,1732645844109,-286.47515019,0.00027397,3]
[343469469,1732645844210,-500.0,0.00027397,2]
[343469470,1732645844221,-528.42028099,0.00027397,3]
[343469471,1732645844233,-554.88472981,0.00027397,3]
[343469472,1732645844248,-500.0,0.00027397,3]
[343469473,1732645844258,-500.0,0.00027397,3]
[343469474,1732645844268,-500.0,0.00027397,3]
[343469475,1732645844278,-500.0,0.00027397,3]
[343469476,1732645844287,-500.0,0.00027397,3]
[343469477,1732645844297,-500.0,0.00027397,3]